fUSD/lending_fUSD_20250827
["ID","MTS","AMOUNT","RATE_DAILY","PERIOD"]
[381525898,1756253210783,219.81,0.00013699,2]
[381526030,1756253432429,-173.03,0.00019884,2]
[381526031,1756253432439,-216.0,0.0002,2]
[381526032,1756253432450,-150.70598152,0.00020187,2]
[381526033,1756253432461,-69.10401848,0.00020187,2]
[381526034,1756253432471,-212.0,0.0002118,2]
[381526035,1756253432481,-416.0,0.0002237,2]
[381526036,1756253432490,-234.84,0.0002264,2]
[381526037,1756253432500,-407.0,0.0002355,2]
[381526038,1756253432509,-250.0,0.0002395,2]
[381526039,1756253432518,-320.55265767,0.00024022,2]
[381526040,1756253432528,-1235.42,0.00024023,2]
[381526041,1756253432537,-388.89213443,0.00024062,2]
[381526042,1756253432549,-72.92786557,0.00024062,2]
[381526043,1756253432559,-150.0,0.00024098,2]
[381526044,1756253432569,-1000.0,0.00024109,2]
[381526045,1756253432579,-658.57888375,0.00024137,2]
[381526046,1756253432590,-341.42111625,0.00024137,2]
[381526047,1756253432600,-2.69382978,0.00024246,7]
[381526048,1756253432651,-157.30617022,0.00024246,7]
[381526049,1756253432661,-1200.0,0.00024258,2]
[381526050,1756253432671,-1021.06832668,0.00024259,2]
[381526051,1756253432703,-1402.74167332,0.00024259,2]
[381526052,1756253432712,-164.46,0.00024301,2]
[381526053,1756253432721,-162.73,0.00024313,2]
[381526054,1756253432731,-303.16794973,0.00024512,2]
[381526056,1756253432742,-1190.7000001,0.00024512,2]
[381526096,1756253438373,-1702.1348597,0.00024512,2]
[381526097,1756253438486,-481.25709497,0.00024512,2]
[381526098,1756253438684,-1119.7,0.00024512,2]
[381526099,1756253440560,-11387.0,0.00024512,2]
[381526120,1756253443599,-450.0,0.00024512,2]
[381526156,1756253447083,-4470.0400955,0.00024512,2]
[381526158,1756253447093,-1713.29845922,0.00024512,2]
[381526161,1756253447104,-2441.70154078,0.00024512,2]
[381526163,1756253447114,-208.29930357,0.00024512,2]
[381526166,1756253447125,-400.0,0.00024512,2]
[381526168,1756253447137,-109.70069643,0.00024512,2]
[381526170,1756253447146,-2340.86736857,0.00024512,2]
[381526172,1756253447157,-3805.13263143,0.00024512,2]
[381526174,1756253447166,-300.0,0.00024531,2]
[381526176,1756253447176,-5000.0,0.00024532,2]
[381526179,1756253447186,-426.495,0.00024657,2]
[381526181,1756253447195,-398.0,0.0002473,2]
[381526183,1756253447205,-200.0,0.0002483,2]
[381526185,1756253447214,-844.63891918,0.00024878,2]
[381526186,1756253447224,-600.0,0.00024885,2]
[381526188,1756253447233,-151.0,0.00024885,2]
[381526190,1756253447242,-500.0,0.00024885,2]
[381526193,1756253447252,-500.0,0.00024885,2]
[381526195,1756253447261,-11422.69161939,0.000249,2]
[381526223,1756253447531,-1001.20674812,0.000249,2]
[381526225,1756253447540,-46.40053563,0.00024932,7]
[381526228,1756253447552,-191.59946437,0.00024932,7]
[381526230,1756253447561,-193.0,0.00024932,7]
[381526241,1756253447667,-195.0,0.00024975,2]
[381526243,1756253447676,-322.6107,0.00024976,2]
[381526245,1756253447686,-241.76875741,0.00024976,2]
[381526624,1756253463885,178.1,0.00024775,120]
[381526625,1756253538032,500.0,0.00027474,120]
[381526642,1756254180683,219.52,0.00013699,2]
[381526650,1756254319998,5002.0393078,9e-05,2]
[381526653,1756254336035,18903.99834448,9e-05,2]
[381526654,1756254336067,4927.56292796,9e-05,2]
[381526655,1756254336091,5368.89292796,9e-05,2]
[381526656,1756254336116,3613.46962364,9e-05,2]
[381526659,1756254346994,-14758.65214105,0.00018,2]
[381526660,1756254347021,-5241.34785895,0.00018,2]
[381526665,1756254360326,-20000.0,0.00018,2]
[381526666,1756254363669,1755.42330432,8e-05,2]
[381526667,1756254363694,5368.89292796,8e-05,2]
[381526668,1756254363736,3921.99166678,8e-05,2]
[381526669,1756254367006,1446.90126118,0.000105,2]
[381526670,1756254367028,3167.39183481,0.000105,2]
[381526747,1756254631550,-187.54583299,0.000179,2]
[381526748,1756254631559,-1200.0,0.00017999,2]
[381526749,1756254631569,-300.93767774,0.00017999,2]
[381526750,1756254631578,-500.0,0.00017999,2]
[381526751,1756254631587,-208.50899535,0.00017999,2]
[381526752,1756254631596,-509.36447519,0.00017999,2]
[381526753,1756254631606,-249.05329635,0.00018,2]
[381526754,1756254631637,-587.96492217,0.00018,2]
[381526755,1756254631649,-1481.89830068,0.00018,2]
[381526756,1756254631713,-5060.40955132,0.00018,2]
[381526757,1756254631723,-1831.76519361,0.00018,2]
[381526758,1756254631775,-2276.0738,0.00018,2]
[381526765,1756254637650,-6900.0,0.00018,2]
[381526819,1756254642650,-831.22710826,0.00018,2]
[381526824,1756254645506,-400.0,0.00018,2]
[381526825,1756254645519,-476.67,0.00018,2]
[381526826,1756254645867,-3728.6,0.00018,2]
[381527063,1756255186516,228.07,0.00013699,2]
[381527085,1756255368917,214.57,0.0002756,120]
[381527195,1756255632715,157.12,0.00028767,120]
[381527235,1756255831855,-200.0,0.00017459,2]
[381527236,1756255831865,-176.14999769,0.00017605,2]
[381527237,1756255832057,-686.57091119,0.00017605,2]
[381527238,1756255832066,-300.0,0.00017647,2]
[381527239,1756255832075,-175.52678215,0.00017647,2]
[381527240,1756255832128,-1024.47321785,0.00017647,2]
[381527241,1756255832138,-284.0,0.00017647,2]
[381527242,1756255832147,-500.0,0.00017647,2]
[381527243,1756255832156,-548.37714532,0.00017647,2]
[381527244,1756255832165,-164.46,0.00017648,2]
[381527245,1756255832175,-4846.69,0.00017648,2]
[381527246,1756255832184,-1000.0,0.000178,2]
[381527247,1756255832193,-1199.0,0.00017899,2]
[381527248,1756255832203,-7371.93553563,0.000179,2]
[381527250,1756255832212,-680.4785502,0.000179,2]
[381527252,1756255832221,-234.19323004,0.000179,2]
[381527253,1756255832231,-2523.53815289,0.000179,2]
[381527254,1756255832239,-187.54583299,0.000179,2]
[381527255,1756255832250,-204.37,0.00017926,2]
[381527256,1756255832258,-500.0,0.00017973,2]
[381527257,1756255832267,-500.0,0.00017973,2]
[381527258,1756255832277,-500.0,0.00017973,2]
[381527259,1756255832285,-500.0,0.00017989,2]
[381527260,1756255832294,-500.0,0.00017989,2]
[381527261,1756255832304,-500.0,0.00017989,2]
[381527262,1756255832313,-288.62224332,0.00017989,2]
[381527263,1756255832322,-154.63,0.0001799,2]
[381527264,1756255832331,-154.63,0.0001799,2]
[381527265,1756255832340,-154.63,0.0001799,2]
[381527266,1756255832350,-154.63,0.0001799,2]
[381527267,1756255832359,-1000.0,0.00017999,2]
[381527268,1756255832368,-55632.2125102,0.00018,2]
[381527269,1756255832413,-930.50693331,0.00018,2]
[381527270,1756255832424,-3711.09591412,0.00018,2]
[381527271,1756255832551,-21962.29134945,0.00018,2]
[381527272,1756255832640,-6450.55911081,0.00018,2]
[381527277,1756255837668,-1272.93310784,0.00018,2]
[381527278,1756255837775,-1016.20242027,0.00018,2]
[381527286,1756255839721,-1400.52750715,0.00018,2]
[381527288,1756255839730,-7759.47249285,0.00018,2]
[381527293,1756255839776,-1365.0,0.00018,2]
[381527299,1756255839851,-74962.49725,0.00018,2]
[381527308,1756255840044,-800.0,0.00018,2]
[381527314,1756255842816,-2421.4371479,0.00018,2]
[381527315,1756255842827,-11846.10321902,0.00018,2]
[381527342,1756255847331,-1377.29339127,0.00018,2]
[381527517,1756256069294,159.61,0.00013894,2]
[381527527,1756256267587,225.45,0.00013699,2]
[381527539,1756256331754,343.2792285,0.00016088,2]
[381527541,1756256341221,177.15,0.00025555,120]
[381527577,1756256539174,194.12654992,0.00015948,2]
[381527622,1756256919868,150.92610913,0.000287,120]
[381527623,1756256927440,500.0,0.00013699,2]
[381527642,1756257032163,-592.73053427,0.00016334,2]
[381527643,1756257032227,-1146.28946573,0.00016334,2]
[381527644,1756257032238,-198.515347,0.00016379,2]
[381527645,1756257032247,-1000.0,0.00016462,3]
[381527646,1756257032257,-150.0,0.00016462,2]
[381527647,1756257032267,-186.27228646,0.00016473,2]
[381527648,1756257032276,-150.0,0.00016503,2]
[381527649,1756257032285,-173.92918449,0.00016545,2]
[381527650,1756257032295,-150.0,0.00016563,2]
[381527651,1756257032304,-191.79,0.00016573,2]
[381527652,1756257032315,-1000.0,0.00016608,2]
[381527653,1756257032324,-1200.0,0.00016671,2]
[381527654,1756257032334,-300.0,0.00016672,2]
[381527655,1756257032343,-8319.64,0.00016673,2]
[381527656,1756257032353,-158.6,0.00016712,2]
[381527657,1756257032362,-250.0,0.00016756,2]
[381527658,1756257032372,-163.49,0.00016764,2]
[381527659,1756257032381,-471.18,0.00016806,2]
[381527660,1756257032391,-173.92918449,0.00016912,2]
[381527661,1756257032400,-97.23533322,0.00016912,2]
[381527662,1756257032412,-373.63466678,0.00016912,2]
[381527664,1756257032424,-150.0,0.00017014,2]
[381527666,1756257032434,-160.0,0.0001703,7]
[381527667,1756257032444,-177.15,0.00017037,2]
[381527668,1756257032453,-1398.71,0.00017039,2]
[381527669,1756257032463,-229.60287631,0.0001736,2]
[381527675,1756257038018,-270.39712369,0.0001736,2]
[381527676,1756257038028,-191.79,0.00017402,2]
[381527677,1756257038038,-851.14287631,0.0001746,2]
[381527678,1756257038049,-1421.21712369,0.0001746,2]
[381527679,1756257038058,-459.78287631,0.000175,2]
[381527703,1756257046095,-1540.21712369,0.000175,2]
[381527704,1756257046107,-672.44943126,0.0001783,2]
[381527705,1756257046116,-550.0,0.0001783,2]
[381527706,1756257046126,-537.83691468,0.00017837,2]
[381527707,1756257046135,-500.0,0.00017837,2]
[381527708,1756257046145,-500.0,0.00017837,2]
[381527709,1756257046154,-647.94377679,0.00017837,2]
[381527710,1756257046164,-500.0,0.00017837,2]
[381527711,1756257046174,-500.0,0.00017837,2]
[381527712,1756257046183,-500.0,0.00017837,2]
[381527713,1756257046193,-500.0,0.00017837,2]
[381527714,1756257046202,-500.0,0.00017837,2]
[381527715,1756257046211,-500.0,0.00017837,2]
[381527716,1756257046222,-500.0,0.00017837,2]
[381527717,1756257046235,-500.0,0.00017837,2]
[381527718,1756257046244,-381.0,0.00017837,2]
[381527719,1756257046253,-186.27228645,0.00017887,2]
[381527720,1756257046263,-393.61949381,0.00017889,2]
[381527721,1756257046274,-2271.18433761,0.00017899,2]
[381527722,1756257046283,-6180.77663581,0.000179,2]
[381527723,1756257046329,-453.96534623,0.000179,2]
[381527724,1756257046338,-567.0654585,0.000179,2]
[381527725,1756257046348,-193.04742722,0.000179,2]
[381527726,1756257046358,-184.74555779,0.000179,2]
[381527727,1756257046367,-500.0,0.00017973,2]
[381527728,1756257046376,-3016.9472046,0.00017979,2]
[381527729,1756257046386,-1785.02900565,0.00017987,2]
[381527730,1756257046423,-470.76785055,0.00017987,2]
[381527792,1756257052114,159.6,0.00014672,2]
[381527800,1756257197783,214.17,0.00013699,2]
[381527808,1756257529652,193.58,0.00025606,120]
[381527820,1756257805567,200.0,0.00013588,2]
[381527821,1756257806143,200.0,0.00013589,2]
[381527830,1756257963464,2931.15771103,8e-05,2]
[381527831,1756257963486,268.48924727,8e-05,2]
[381527879,1756258176072,3592.835788,0.00016,2]
[381527902,1756258232499,-777.54,0.00016368,2]
[381527903,1756258232508,-1000.0,0.00016385,3]
[381527904,1756258232517,-3502.47,0.00016403,2]
[381527905,1756258232526,-150.0,0.00016459,2]
[381527906,1756258232535,-230.0,0.000165,2]
[381527907,1756258232544,-150.02,0.00016516,2]
[381527908,1756258232554,-150.0,0.00016547,2]
[381527909,1756258232563,-1000.0,0.00016578,2]
[381527910,1756258232572,-250.0,0.0001663,2]
[381527911,1756258232581,-150.0,0.00016677,2]
[381527912,1756258232590,-163.15,0.00016828,2]
[381527913,1756258232599,-1200.0,0.00016849,2]
[381527914,1756258232610,-1852.42,0.0001685,2]
[381527915,1756258232619,-300.0,0.00016947,2]
[381527916,1756258232628,-300.0,0.00016947,2]
[381527917,1756258232638,-2751.0,0.00016948,2]
[381527918,1756258232647,-627.54930853,0.00017069,2]
[381527919,1756258232659,-184.74455138,0.00017069,2]
[381527920,1756258232669,-18820.28,0.0001707,2]
[381527921,1756258232678,-193.58,0.0001707,2]
[381527922,1756258232688,-166.68,0.00017129,2]
[381527923,1756258232697,-436.69,0.00017142,2]
[381527924,1756258232708,-160.0,0.00017171,7]
[381527925,1756258232718,-150.0,0.0001718,2]
[381527926,1756258232728,-150.02,0.00017342,2]
[381527927,1756258232738,-569.96712774,0.00017359,2]
[381527929,1756258232749,-150.0,0.00017447,2]
[381527931,1756258232758,-500.0,0.00017448,2]
[381527933,1756258232768,-203.1209492,0.00017457,2]
[381527935,1756258232777,-500.0,0.00017457,2]
[381527937,1756258232786,-210.65637442,0.00017457,2]
[381527939,1756258232795,-222.30620625,0.00017457,2]
[381527942,1756258232804,-27936.42314023,0.00017458,2]
[381527946,1756258232816,-2200.0,0.00017458,2]
[381527952,1756258239413,-2254.15428961,0.00017358,2]
[381527953,1756258239423,-346.19981389,0.00017458,2]
[381527956,1756258240408,-6541.94113734,0.00017458,2]
[381527957,1756258240418,-2349.58584619,0.00017458,2]
[381527958,1756258240431,-276.92940723,0.00017458,2]
[381527959,1756258240442,-367.60570403,0.00017458,2]
[381527960,1756258240454,-6746.19348514,0.00017458,2]
[381527961,1756258240576,-20041.62417757,0.00017458,2]
[381527962,1756258240590,-2430.45793243,0.00017458,2]
[381527983,1756258243370,-150.7305554,0.00017358,2]
[381527984,1756258243379,-2322.34061514,0.00017458,2]
[381527985,1756258243634,-340.2974536,0.00017458,2]
[381528005,1756258246356,-8140.20680827,0.00017458,2]
[381528006,1756258246392,-179187.92588577,0.00017458,2]
[381528007,1756258246401,-720.8549344,0.00017458,2]
[381528008,1756258246410,-2698.06663176,0.00017459,2]
[381528009,1756258246420,-500.0,0.00017644,2]
[381528010,1756258246431,-225.0,0.0001768,2]
[381528011,1756258246441,-200.0,0.000178,6]
[381528012,1756258246450,-500.0,0.00017808,2]
[381528013,1756258246459,-500.0,0.00017836,2]
[381528014,1756258246469,-163.93661252,0.000179,2]
[381528015,1756258246478,-500.0,0.000179,6]
[381528016,1756258246488,-250.0,0.00017936,2]
[381528017,1756258246497,-500.0,0.00017973,2]
[381528018,1756258246507,-341.93999063,0.00017973,2]
[381528019,1756258246516,-500.0,0.00017973,2]
[381528020,1756258246525,-151.0,0.00017973,2]
[381528021,1756258246535,-151.0,0.00017973,2]
[381528022,1756258246544,-383.469518,0.00017973,2]
[381528023,1756258246554,-383.469518,0.00017973,2]
[381528024,1756258246563,-151.0,0.00017973,2]
[381528025,1756258246572,-152.733341,0.00017973,2]
[381528026,1756258246582,-383.469518,0.00017973,2]
[381528027,1756258246591,-151.0,0.00017973,2]
[381528028,1756258246600,-383.469518,0.00017973,2]
[381528029,1756258246610,-151.0,0.00017973,2]
[381528030,1756258246622,-297.851331,0.00017973,2]
[381528031,1756258246631,-151.0,0.00017973,2]
[381528032,1756258246640,-151.0,0.00017973,2]
[381528033,1756258246650,-151.0,0.00017973,2]
[381528034,1756258246662,-276.550352,0.00017973,2]
[381528035,1756258246672,-151.0,0.00017973,2]
[381528036,1756258246684,-151.0,0.00017973,2]
[381528037,1756258246694,-151.0,0.00017973,2]
[381528038,1756258246703,-151.0,0.00017973,2]
[381528039,1756258246712,-443.059539,0.00017973,2]
[381528041,1756258246722,-443.059539,0.00017973,2]
[381528043,1756258246731,-443.059539,0.00017973,2]
[381528045,1756258246741,-151.0,0.00017973,2]
[381528047,1756258246750,-151.0,0.00017973,2]
[381528049,1756258246760,-443.059539,0.00017973,2]
[381528051,1756258246770,-151.0,0.00017973,2]
[381528053,1756258246779,-151.0,0.00017973,2]
[381528055,1756258246789,-151.0,0.00017973,2]
[381528057,1756258246798,-151.0,0.00017973,2]
[381528059,1756258246809,-151.0,0.00017973,2]
[381528061,1756258246818,-151.0,0.00017973,2]
[381528063,1756258246828,-151.0,0.00017973,2]
[381528065,1756258246838,-151.0,0.00017973,2]
[381528067,1756258246847,-151.0,0.00017973,2]
[381528069,1756258246856,-151.0,0.00017973,2]
[381528071,1756258246866,-151.0,0.00017973,2]
[381528073,1756258246875,-151.0,0.00017973,2]
[381528075,1756258246885,-151.0,0.00017973,2]
[381528077,1756258246894,-191.320936,0.00017973,2]
[381528079,1756258246903,-234.015791,0.00017973,2]
[381528081,1756258246913,-191.320936,0.00017973,2]
[381528083,1756258246922,-234.015791,0.00017973,2]
[381528085,1756258246933,-151.0,0.00017973,2]
[381528087,1756258246943,-191.320936,0.00017973,2]
[381528089,1756258246952,-234.015791,0.00017973,2]
[381528090,1756258246962,-151.0,0.00017973,2]
[381528092,1756258246971,-191.320936,0.00017973,2]
[381528094,1756258246981,-234.015791,0.00017973,2]
[381528097,1756258246991,-151.0,0.00017973,2]
[381528101,1756258247001,-151.0,0.00017973,2]
[381528105,1756258247012,-151.0,0.00017973,2]
[381528108,1756258247023,-151.0,0.00017973,2]
[381528111,1756258247032,-151.0,0.00017973,2]
[381528114,1756258247041,-151.49626,0.00017973,2]
[381528117,1756258247050,-151.0,0.00017973,2]
[381528119,1756258247060,-151.0,0.00017973,2]
[381528122,1756258247069,-151.0,0.00017973,2]
[381528125,1756258247078,-151.0,0.00017973,2]
[381528127,1756258247088,-3815.698753,0.00017973,2]
[381528130,1756258247097,-3815.698753,0.00017973,2]
[381528133,1756258247106,-691.949743,0.00017973,2]
[381528135,1756258247115,-3815.698753,0.00017973,2]
[381528137,1756258247125,-151.0,0.00017973,2]
[381528139,1756258247134,-151.0,0.00017973,2]
[381528141,1756258247143,-691.949743,0.00017973,2]
[381528143,1756258247153,-3815.698753,0.00017973,2]
[381528145,1756258247162,-151.0,0.00017973,2]
[381528147,1756258247171,-151.0,0.00017973,2]
[381528149,1756258247182,-151.0,0.00017973,2]
[381528151,1756258247191,-151.0,0.00017973,2]
[381528153,1756258247200,-151.0,0.00017973,2]
[381528155,1756258247210,-151.0,0.00017973,2]
[381528157,1756258247219,-151.0,0.00017973,2]
[381528159,1756258247228,-691.949743,0.00017973,2]
[381528161,1756258247237,-151.0,0.00017973,2]
[381528163,1756258247248,-151.0,0.00017973,2]
[381528165,1756258247257,-691.949743,0.00017973,2]
[381528167,1756258247266,-151.0,0.00017973,2]
[381528169,1756258247276,-239.054112,0.00017973,2]
[381528171,1756258247287,-151.0,0.00017973,2]
[381528173,1756258247296,-151.0,0.00017973,2]
[381528175,1756258247305,-151.0,0.00017973,2]
[381528177,1756258247314,-151.0,0.00017973,2]
[381528179,1756258247323,-151.0,0.00017973,2]
[381528181,1756258247332,-151.0,0.00017973,2]
[381528183,1756258247341,-60.61776604,0.00017973,2]
[381528186,1756258247487,-90.38223396,0.00017973,2]
[381528187,1756258247497,-151.0,0.00017973,2]
[381528188,1756258247506,-151.0,0.00017973,2]
[381528189,1756258247516,-22.56665959,0.00017973,2]
[381528192,1756258253630,211.59,0.00013699,2]
[381528198,1756258407458,200.0,0.00013589,2]
[381528209,1756258792965,170.9,0.00026023,120]
[381528214,1756258822380,164.347,0.00028767,120]
[381528215,1756258982082,328.09097067,0.000287,120]
[381528220,1756259068550,168.0,0.00028767,120]
[381528226,1756259277330,201.01,0.00013699,2]
[381528235,1756259431705,-492.58,0.00016867,2]
[381528236,1756259431715,-150.0,0.00016914,2]
[381528237,1756259431729,-160.0,0.00016961,7]
[381528238,1756259431739,-400.0683306,0.00017051,2]
[381528239,1756259431751,-316.2916694,0.00017051,2]
[381528240,1756259431764,-150.0,0.0001711,2]
[381528241,1756259431774,-250.0,0.00017168,2]
[381528242,1756259431784,-165.46,0.00017232,2]
[381528243,1756259431794,-2751.0,0.00017243,2]
[381528244,1756259431805,-150.0,0.00017244,2]
[381528245,1756259431815,-934.59,0.0001727,2]
[381528246,1756259431825,-171.03,0.00017273,2]
[381528247,1756259431835,-242.0,0.000173,2]
[381528248,1756259431845,-1200.0,0.00017348,2]
[381528249,1756259431855,-1000.0,0.00017349,2]
[381528250,1756259431865,-170.9,0.00017349,2]
[381528251,1756259431875,-300.0,0.00017456,2]
[381528252,1756259431885,-1865.49422322,0.00017459,2]
[381528253,1756259431895,-500.0,0.00017753,2]
[381528254,1756259431905,-167.43,0.00017761,2]
[381528255,1756259431915,-200.0,0.000178,6]
[381528256,1756259431928,-154.0,0.00017899,2]
[381528257,1756259431938,-166.70383411,0.000179,2]
[381528258,1756259431947,-156.21,0.000179,2]
[381528259,1756259431957,-2011.34,0.000179,2]
[381528260,1756259431969,-4254.434,0.000179,2]
[381528261,1756259431979,-283.372,0.000179,2]
[381528262,1756259431988,-500.0,0.000179,6]
[381528263,1756259431999,-500.0,0.00017973,2]
[381528264,1756259432010,-150.2049567,0.00017973,2]
[381528266,1756259432019,-1929.86493372,0.00017973,2]
[381528267,1756259432033,-38220.28559728,0.00017973,2]
[381528269,1756259437490,-15882.07088682,0.00017973,2]
[381528270,1756259437501,-152.45470568,0.00017973,2]
[381528271,1756259437511,-150.0,0.00017973,2]
[381528272,1756259437520,-500.0,0.00017973,2]
[381528273,1756259437529,-150.0,0.00017973,2]
[381528274,1756259437539,-2750.28912,0.00017973,2]
[381528275,1756259437549,-1221.0,0.00017973,2]
[381528276,1756259437558,-509.69214869,0.00017986,2]
[381528277,1756259437568,-217.6244923,0.00017986,2]
[381528278,1756259437578,-150.41838615,0.00017987,2]
[381528279,1756259437587,-3444.07047562,0.00017987,2]
[381528280,1756259437596,-151.0,0.00017987,2]
[381528281,1756259437607,-151.0,0.00017987,2]
[381528282,1756259437617,-151.0,0.00017987,2]
[381528283,1756259437626,-272.48587,0.00017987,2]
[381528284,1756259437635,-151.0,0.00017987,2]
[381528285,1756259437644,-151.0,0.00017987,2]
[381528286,1756259437654,-151.0,0.00017987,2]
[381528287,1756259437663,-151.0,0.00017987,2]
[381528288,1756259437673,-151.0,0.00017987,2]
[381528289,1756259437685,-151.0,0.00017987,2]
[381528290,1756259437694,-151.0,0.00017987,2]
[381528291,1756259437704,-151.0,0.00017987,2]
[381528292,1756259437714,-151.0,0.00017987,2]
[381528293,1756259437724,-151.0,0.00017987,2]
[381528294,1756259437734,-179.565231,0.00017987,2]
[381528295,1756259437743,-151.0,0.00017987,2]
[381528296,1756259437754,-151.637025,0.00017987,2]
[381528297,1756259437766,-151.0,0.00017987,2]
[381528298,1756259437776,-151.233601,0.00017987,2]
[381528299,1756259437786,-151.0,0.00017987,2]
[381528300,1756259437796,-151.0,0.00017987,2]
[381528301,1756259437806,-151.0,0.00017987,2]
[381528303,1756259437816,-151.0,0.00017987,2]
[381528305,1756259437825,-151.0,0.00017987,2]
[381528307,1756259437835,-151.0,0.00017987,2]
[381528309,1756259437845,-151.0,0.00017987,2]
[381528312,1756259437855,-151.0,0.00017987,2]
[381528313,1756259437864,-151.0,0.00017987,2]
[381528315,1756259437874,-151.0,0.00017987,2]
[381528316,1756259437884,-263.018399,0.00017987,2]
[381528317,1756259437893,-151.0,0.00017987,2]
[381528318,1756259437903,-151.0,0.00017987,2]
[381528319,1756259437912,-151.0,0.00017987,2]
[381528320,1756259437923,-151.0,0.00017987,2]
[381528321,1756259437933,-151.0,0.00017987,2]
[381528322,1756259437943,-197.495898,0.00017987,2]
[381528323,1756259437952,-151.0,0.00017987,2]
[381528324,1756259437963,-151.0,0.00017987,2]
[381528325,1756259437974,-151.0,0.00017987,2]
[381528326,1756259437984,-151.0,0.00017987,2]
[381528327,1756259437994,-151.0,0.00017987,2]
[381528328,1756259438004,-179.151114,0.00017987,2]
[381528329,1756259438013,-151.0,0.00017987,2]
[381528330,1756259438023,-151.0,0.00017987,2]
[381528331,1756259438036,-151.526577,0.00017987,2]
[381528332,1756259438045,-185.371815,0.00017987,2]
[381528333,1756259438055,-151.0,0.00017987,2]
[381528334,1756259438064,-151.0,0.00017987,2]
[381528335,1756259438074,-151.0,0.00017987,2]
[381528336,1756259438085,-151.0,0.00017987,2]
[381528337,1756259438094,-151.0,0.00017987,2]
[381528338,1756259438104,-151.0,0.00017987,2]
[381528339,1756259438114,-251.289601,0.00017987,2]
[381528340,1756259438125,-187.529952,0.00017987,2]
[381528341,1756259438135,-151.778796,0.00017987,2]
[381528342,1756259438145,-172.71733131,0.00017987,2]
[381528343,1756259438155,-151.26044,0.00017987,2]
[381528344,1756259438165,-151.0,0.00017987,2]
[381528345,1756259438174,-151.0,0.00017987,2]
[381528346,1756259438183,-151.0,0.00017987,2]
[381528347,1756259438193,-151.0,0.00017987,2]
[381528348,1756259438202,-151.0,0.00017987,2]
[381528349,1756259438211,-151.0,0.00017987,2]
[381528350,1756259438221,-151.0,0.00017987,2]
[381528351,1756259438231,-151.0,0.00017987,2]
[381528352,1756259438240,-151.0,0.00017987,2]
[381528353,1756259438249,-151.0,0.00017987,2]
[381528354,1756259438260,-151.0,0.00017987,2]
[381528355,1756259438270,-169.100216,0.00017987,2]
[381528356,1756259438281,-151.0,0.00017987,2]
[381528357,1756259438290,-151.0,0.00017987,2]
[381528358,1756259438300,-151.0,0.00017987,2]
[381528359,1756259438309,-151.0,0.00017987,2]
[381528360,1756259438318,-151.0,0.00017987,2]
[381528361,1756259438327,-152.434378,0.00017987,2]
[381528362,1756259438337,-152.295053,0.00017987,2]
[381528363,1756259438346,-212.916641,0.00017987,2]
[381528364,1756259438357,-212.916641,0.00017987,2]
[381528365,1756259438367,-212.916641,0.00017987,2]
[381528366,1756259438386,-212.916641,0.00017987,2]
[381528367,1756259438398,-212.916641,0.00017987,2]
[381528368,1756259438411,-212.916641,0.00017987,2]
[381528369,1756259438420,-212.916641,0.00017987,2]
[381528370,1756259438429,-212.916641,0.00017987,2]
[381528371,1756259438438,-212.916641,0.00017987,2]